[Event "Vienna Championship 2022"]
[Site "Vienna"]
[Date "2022.09.24"]
[Round "8.1"]
[White "Schwabeneder, Florian"]
[Black "Halvax, Georg"]
[Result "0-1"]
[ECO "D35"]
[WhiteElo "2417"]
[BlackElo "2423"]
[Annotator "TA"]
[PlyCount "48"]
[EventDate "2022.09.17"]
[EventType "tourn"]
[EventCountry "AUT"]
[SourceTitle "playchess.com"]
[Source "ChessBase"]
[SourceQuality "1"]
[TimeControl "5400+30"]

{[%evp 14,48,13,12,11,0,0,0,14,8,3,-7,0,-28,-17,-25,-15,-12,0,0,0,0,0,-29,-27,-312,-339,-402,-385,-371,-231,-1046,-988,-1036,-970,-988,-744]} 1. d4 {[%emt 0:00:04]} d5 {[%emt 0:04:23]} 2. Nf3 {[%emt 0:00:30]} Nf6 {[%emt 0:00:23]} 3. c4 {[%emt 0:00:09]} e6 {[%emt 0:00:17]} 4. cxd5 {[%emt 0:00:28]} exd5 {[%emt 0:00:10]} 5. Nc3 {[%emt 0:00:05]} c6 {[%emt 0:01:47]} 6. Bf4 {[%emt 0:00:13]} Bd6 {[%emt 0:01:40]} 7. Bxd6 {[%emt 0:01:21]} Qxd6 {[%emt 0:00:09]} 8. e3 {[%emt 0:00:05]} O-O {[%emt 0:01:30] D35: Queen's Gambit Declined: Exchange Variation.} 9. Bd3 {[%emt 0:03:00]} Bg4 {[%emt 0:00:37]} 10. h3 {[%emt 0:06:07]} Bh5 {[%emt 0:00:59] The position is equal.} 11. g4 {[%emt 0:10:27]} Bg6 {[%emt 0:01:00]} 12. Bxg6 {[%emt 0:00:08]} fxg6 {[%emt 0:04:07] [#]} 13. g5 $146 {[%emt 0:04:52]} ({Predecessor:} 13. Ne5 c5 14. g5 Nfd7 15. f4 Nc6 16. dxc5 Qxc5 17. Nxd7 Qxe3+ 18. Qe2 Qg3+ 19. Qf2 {1-0 (47) Jambrich,J (2233)-Hudak,D (2237) ICCF email 2010}) 13... Nfd7 {[%emt 0:03:43]} 14. Qe2 {[%emt 0:04:28]} Qe6 {[%emt 0:04:56]} 15. h4 {[%emt 0:01:13]} Qf5 {[%emt 0:03:01]} 16. Nh2 {[%emt 0:04:13]} Na6 {[%emt 0:02:19][%cal Bb8a6,Ba6b4,Bb4d3][%mdl 32]} 17. f4 {[%emt 0:09:15]} c5 {[%emt 0:05:25] [#] White must now prevent ...cxd4.} 18. Nf3 {[%emt 0:01:58]} Nb4 {[%emt 0:02:24] ...Nd3+ is the strong threat.} 19. Rh2 $2 {[%emt 0:24:54][%mdl 8192] This costs White the game.} (19. Rd1 $11 {and White is okay.}) 19... Nd3+ $19 {[%emt 0:07:28]} 20. Kf1 {[%emt 0:00:10]} Rae8 {[%emt 0:05:11] Strongly threatening ...Nxf4.} 21. Qd2 {[%emt 0:00:39]} Qg4 {[%emt 0:06:05]} 22. Ne1 $2 {[%emt 0:03:35] [#]} (22. Rf2 Qh3+ 23. Kg1 Qg3+ 24. Rg2 Qxf3 25. Qxd3) 22... Nxf4 $1 {[%emt 0:07:42][%mdl 512] Black is clearly winning.} 23. exf4 {[%emt 0:04:29]} Rxf4+ {[%emt 0:00:22]} 24. Rf2 {[%emt 0:00:17]} Rxf2+ {[%emt 0:00:08] Weighted Error Value: White=0.75/Black=0.15 (very precise)} 0-1

[Event "Vienna Championship 2022"]
[Site "Vienna"]
[Date "2022.09.24"]
[Round "8.2"]
[White "Baumegger, Siegfried"]
[Black "Kruckenhauser, Arthur"]
[Result "0-1"]
[ECO "A37"]
[WhiteElo "2447"]
[BlackElo "2289"]
[Annotator "TA"]
[PlyCount "62"]
[EventDate "2022.09.17"]
[EventType "tourn"]
[EventCountry "AUT"]
[SourceTitle "playchess.com"]
[Source "ChessBase"]
[SourceQuality "1"]
[TimeControl "5400+30"]

{[%evp 19,62,0,6,-14,0,-5,17,20,15,11,36,41,129,139,133,120,118,128,121,123,166,165,151,172,152,113,130,115,164,160,162,149,160,164,158,143,206,197,267,216,230,220,265,-1819,-1642]} 1. Nf3 {[%emt 0:00:12]} c5 {[%emt 0:00:29]} 2. c4 {[%emt 0:03:33]} Nc6 {[%emt 0:00:21]} 3. Nc3 {[%emt 0:00:25]} e5 {[%emt 0:00:08]} 4. g3 {[%emt 0:00:21]} g6 {[%emt 0:00:10]} 5. Bg2 {[%emt 0:00:08]} Bg7 {[%emt 0:00:05]} 6. O-O {[%emt 0:00:51]} Nge7 {[%emt 0:00:29]} 7. a3 {[%emt 0:02:32]} O-O {[%emt 0:03:28]} 8. Rb1 {[%emt 0:02:12]} a5 {[%emt 0:00:42]} 9. d3 {[%emt 0:00:16]} d6 {[%emt 0:00:28]} 10. Bg5 {[%emt 0:03:06]} f6 {[%emt 0:00:05]} 11. Be3 {[%emt 0:00:14] A37: Symmetrical English vs ...g6: 4 Bg2 Bg7 5 Nf3.} Be6 {[%emt 0:00:07]} 12. Ne1 {[%emt 0:02:15]} Rb8 {[%emt 0:06:31] is the legacy move (12...b6).} 13. Nc2 {[%emt 0:00:45] The position is equal.} b6 {[%emt 0:08:49]} 14. b4 {[%emt 0:00:59]} d5 {[%emt 0:02:49]} 15. cxd5 {[%emt 0:05:12]} Nxd5 {[%emt 0:00:27]} ({Black should try} 15... cxb4 $14 16. dxe6 (16. axb4 Nxd5 17. Bxd5 Bxd5 $11) 16... bxc3) 16. Bxd5 $16 {[%emt 0:00:47]} Bxd5 {[%emt 0:00:47]} 17. bxc5 {[%emt 0:00:25]} bxc5 {[%emt 0:02:59] [#]} 18. Rxb8 $146 {[%emt 0:02:43]} ({Predecessor:} 18. Bxc5 Rf7 19. Rxb8 Nxb8 20. Bb6 Qxb6 21. Nxd5 Qc5 22. Qb1 Qxd5 23. Qxb8+ Bf8 24. Rb1 {1-0 (41) Udani,I (2272)-Wong,Y (2138) Penang 2016}) 18... Nxb8 {[%emt 0:00:26]} 19. Bxc5 {[%emt 0:01:02]} Re8 {[%emt 0:08:28] [#]} 20. Bb6 $1 {[%emt 0:05:41][%mdl 512]} Qxb6 {[%emt 0:04:06]} 21. Nxd5 {[%emt 0:00:07][%cal Bc3d5,Bd5e3,Be3c4][%mdl 32]} Qc5 {[%emt 0:02:40]} 22. Nde3 {[%emt 0:06:28] Pair of Knights!} Nc6 {[%emt 0:05:52]} 23. Qb1 {[%emt 0:00:16]} Nd4 {[%emt 0:15:30]} (23... f5 $16) 24. Nxd4 {[%emt 0:01:34]} exd4 {[%emt 0:01:31]} 25. Qa2+ {[%emt 0:00:12]} Kh8 {[%emt 0:02:37]} 26. Nc4 {[%emt 0:00:25]} h5 {[%emt 0:01:31]} 27. Qd2 {[%emt 0:11:38]} Bf8 {[%emt 0:03:45]} (27... Qg5 $16) 28. Rb1 $18 {[%emt 0:04:59]} Qf5 {[%emt 0:04:06]} (28... Kh7 $142 29. a4 (29. Nxa5 Qxa3 30. Nc4 Qa6 $16) 29... Qc6 30. Qxa5 Rxe2) 29. Rb2 {[%emt 0:11:28]} h4 {[%emt 0:04:00]} 30. a4 {[%emt 0:16:30]} h3 {[%emt 0:03:13]} 31. Qxa5 $4 {[%emt 0:03:45][%mdl 8192] [#]} (31. Rb5 $18 Qe6 32. Kf1 (32. Nxa5 Qxe2 33. Qxe2 Rxe2 $14)) 31... Rxe2 $3 {[%emt 0:01:11][%mdl 512] Quite a comeback for Black.  Weighted Error Value: White=0.43/Black=0.27 (precise)} 0-1

[Event "Vienna Championship 2022"]
[Site "Vienna"]
[Date "2022.09.24"]
[Round "8.3"]
[White "Vitouch, Anatol"]
[Black "Leisch, Lukas"]
[Result "1/2-1/2"]
[ECO "D11"]
[WhiteElo "2252"]
[BlackElo "2409"]
[Annotator "TA"]
[PlyCount "91"]
[EventDate "2022.09.17"]
[EventType "tourn"]
[EventCountry "AUT"]
[SourceTitle "playchess.com"]
[Source "ChessBase"]
[SourceQuality "1"]
[TimeControl "5400+30"]

{[%evp 22,91,6,2,0,0,0,-10,8,0,0,0,0,0,0,0,0,-14,0,0,0,-12,0,-21,0,-14,45,-14,-17,-42,0,0,0,0,0,0,0,0,8,8,13,4,4,-31,0,-77,-68,-55,-65,-70,-4,-160,-77,-308,-260,-510,0,0,0,0,0,0,0,0,0,0,0,0,0,0,0,0]} 1. d4 {[%emt 0:00:02]} Nf6 {[%emt 0:11:03]} 2. Nf3 {[%emt 0:00:06]} d5 {[%emt 0:00:28]} 3. g3 {[%emt 0:00:06]} Bf5 {[%emt 0:00:20]} 4. Bg2 {[%emt 0:00:05]} h6 {[%emt 0:00:53]} 5. O-O {[%emt 0:00:06]} e6 {[%emt 0:00:06]} 6. c4 {[%emt 0:00:15]} c6 {[%emt 0:00:20]} 7. Nc3 {[%emt 0:00:13]} Be7 {[%emt 0:00:55]} 8. Nd2 {[%emt 0:01:17]} Nbd7 {[%emt 0:01:38]} 9. e4 {[%emt 0:00:22]} dxe4 {[%emt 0:00:09]} 10. Ndxe4 {[%emt 0:00:10]} Nxe4 {[%emt 0:03:08]} 11. Nxe4 {[%emt 0:00:13]} O-O {[%emt 0:00:12]} 12. Be3 {[%emt 0:01:05]} Nf6 {[%emt 0:16:19] D11: Slav Defence: 3 Nf3 sidelines and 3...Nf6 4 e3 Bg4.} 13. Nc3 {[%emt 0:05:14] 13.Nxf6+ deserves study.} Qa5 {[%emt 0:00:54]} 14. a3 {[%emt 0:06:49]} Rfd8 {[%emt 0:03:17]} 15. b4 {[%emt 0:07:57]} Qc7 {[%emt 0:01:08] [#]} 16. h3 $146 {[%emt 0:09:57]} ({Predecessor:} 16. Qe2 Rac8 17. Rfc1 Qd7 18. h3 b6 19. Rd1 Qe8 20. Bf4 Rd7 21. g4 Bg6 22. Ra2 {1-0 (73) Matnadze,A (2422)-Exler,V (2103) Istanbul 2012}) 16... e5 {[%emt 0:17:51]} 17. d5 {[%emt 0:01:02]} cxd5 {[%emt 0:00:17]} 18. Nxd5 {[%emt 0:00:42]} Nxd5 {[%emt 0:00:06]} 19. cxd5 {[%emt 0:00:26]} Qd7 {[%emt 0:00:35]} 20. g4 {[%emt 0:00:39]} Bg6 {[%emt 0:00:08]} 21. Qe2 {[%emt 0:15:05]} Bd6 {[%emt 0:07:03]} 22. Rac1 {[%emt 0:04:37]} Re8 {[%emt 0:00:44]} 23. Rfd1 {[%emt 0:02:22]} h5 {[%emt 0:07:06]} ({Black should play} 23... e4 $11) 24. Rc4 {[%emt 0:10:20]} (24. gxh5 $14 Bf5 25. Bc5) 24... hxg4 $11 {[%emt 0:00:31]} 25. hxg4 {[%emt 0:00:06]} a5 {[%emt 0:03:44]} 26. Bc5 {[%emt 0:02:24]} axb4 {[%emt 0:00:23]} 27. Bxb4 {[%emt 0:00:59]} Bxb4 {[%emt 0:04:46]} 28. axb4 {[%emt 0:00:07]} Qd6 {[%emt 0:00:07]} 29. Qe3 {[%emt 0:02:05]} Ra4 {[%emt 0:02:13]} 30. f4 {[%emt 0:08:15] Threatens to win with fxe5.} f6 {[%emt 0:02:09]} ({Don't do} 30... Rxb4 31. fxe5 Qf8 32. Rf4 $16) 31. f5 {[%emt 0:00:09]} Bf7 {[%emt 0:00:13]} 32. Qc3 {[%emt 0:02:29]} Qb6+ {[%emt 0:01:19]} 33. Kf1 {[%emt 0:01:57]} (33. Kh2 $1 $11) 33... Qa6 {[%emt 0:01:37] And now ...Ra3 would win.} 34. Kg1 $1 {[%emt 0:01:13]} Ra3 {[%emt 0:04:08]} 35. Qc1 {[%emt 0:00:16] [#]} Qb6+ {[%emt 0:02:16]} (35... Ra1 $1 $15 36. Qxa1 Qxc4) 36. Rc5 $2 {[%emt 0:01:06]} (36. Kh2 $1 $11 Ra2 37. Rd2 Rxd2 38. Qxd2) 36... Qxb4 {[%emt 0:01:18]} (36... Rg3 $142 37. Qc4 e4) 37. Rc7 $2 {[%emt 0:03:52]} (37. d6 $17 Ra1 38. Qxa1 Qxc5+ 39. Kh2) 37... Rg3 {[%emt 0:01:06]} 38. d6 $2 {[%emt 0:02:30]} (38. Qc4 Qb2 39. Qc2 Qb6+ 40. Kh2 Rxg4 41. Rc3) 38... Bd5 $2 {[%emt 0:06:29]} 39. Rxd5 {[%emt 0:02:02] Dancing on a razor blade. The position is equal.} Rxg2+ $1 {[%emt 0:00:04][%mdl 64] Decoy} 40. Kxg2 {[%emt 0:00:06] Hoping for Qc4.} Qe4+ {[%emt 0:00:04]} 41. Kh2 {[%emt 0:01:02] Intending d7 and mate.} Qxd5 {[%emt 0:00:11]} 42. Rc8 {[%emt 0:00:48]} Rxc8 {[%emt 0:01:45]} 43. Qxc8+ {[%emt 0:00:07]} Kh7 {[%emt 0:00:05] aiming for ...Qd2+.} 44. d7 {[%emt 0:00:50]} Qd2+ {[%emt 0:00:06]} 45. Kg1 {[%emt 0:00:56]} Qd1+ {[%emt 0:00:24]} 46. Kf2 {[%emt 0:00:28] Weighted Error Value: White=0.39/Black=0.28 (precise)} 1/2-1/2

[Event "Vienna Championship 2022"]
[Site "Vienna"]
[Date "2022.09.24"]
[Round "8.4"]
[White "Steindl, Johannes"]
[Black "Peyrer, Konstantin"]
[Result "0-1"]
[ECO "B00"]
[WhiteElo "2327"]
[BlackElo "2402"]
[Annotator "TA"]
[PlyCount "64"]
[EventDate "2022.09.17"]
[EventType "tourn"]
[EventCountry "AUT"]
[SourceTitle "playchess.com"]
[Source "ChessBase"]
[SourceQuality "1"]
[TimeControl "5400+30"]

{[%evp 9,64,25,69,45,40,28,41,32,42,40,66,53,61,43,79,57,61,64,68,38,54,29,64,57,57,73,74,65,100,94,294,11,23,10,25,23,52,-46,-48,-69,-84,-92,-93,-481,-463,-494,-505,-486,-504,-502,-490,-457,-392,-413,-389,-1464,-1380]} 1. e4 {[%emt 0:13:24]} Nc6 {[%emt 0:00:10]} 2. d4 {[%emt 1:18:06]} d5 {[%emt 0:00:06]} 3. e5 {[%emt 0:00:00]} Bf5 {[%emt 0:00:05]} 4. Nf3 {[%emt 0:00:00]} e6 {[%emt 0:00:25]} 5. c3 {[%emt 0:00:00]} h6 {[%emt 0:03:03]} 6. Bd3 {[%emt 0:00:00] B00: Queen's Fianchetto Defence, Nimzowitsch Defence.} Nge7 {[%emt 0:00:49]} 7. Na3 {[%emt 0:00:00] [#]} Bxd3 $146 {[%emt 0:05:55]} ({Predecessor:} 7... a6 8. O-O b5 9. Nc2 Na5 10. Ne3 Bxd3 11. Qxd3 Nc4 12. b3 Nb6 13. Ba3 Ng6 14. Bxf8 Nxf8 {1-0 (54) Rieder,J (1803)-Tsybulevsky,J (1676) Ditzingen 2014}) 8. Qxd3 {[%emt 0:00:00] White is slightly better.} Nf5 {[%emt 0:00:10]} 9. Nc2 {[%emt 0:00:00]} h5 {[%emt 0:04:32]} 10. h4 {[%emt 0:00:00]} Be7 {[%emt 0:01:25]} 11. g3 {[%emt 0:00:00]} f6 {[%emt 0:03:42]} 12. Ne3 {[%emt 0:00:00]} Nxe3 {[%emt 0:00:40]} 13. Bxe3 {[%emt 0:00:00]} Kd7 {[%emt 0:02:38]} 14. O-O-O {[%emt 0:00:00]} Qg8 {[%emt 0:02:33]} 15. Rhe1 {[%emt 0:00:00]} fxe5 {[%emt 0:04:21]} 16. dxe5 {[%emt 0:00:00]} Rf8 {[%emt 0:00:32]} 17. Nd4 {[%emt 0:00:00]} Nxd4 {[%emt 0:13:14]} (17... Nxe5 $2 18. Qb5+ Kc8 19. Bf4 $18) 18. Qxd4 {[%emt 0:00:00]} Ra8 {[%emt 0:14:56]} 19. c4 {[%emt 0:00:00]} c5 $2 {[%emt 0:06:29]} (19... c6 $16) 20. Qd3 $2 {[%emt 0:00:00]} ({Only move:} 20. Qe4 $1 $18 {[%cal Rc4d5]} Kc6 21. cxd5+ exd5 22. Qa4+ Kc7 23. e6) 20... d4 $11 {[%emt 0:00:37] [#]} 21. Bxd4 $1 {[%emt 0:00:00]} cxd4 {[%emt 0:00:07]} 22. Qxd4+ {[%emt 0:00:00]} Ke8 {[%emt 0:00:06][%cal Bd7e8,Be8f7,Bf7g6][%mdl 32]} 23. Qd7+ {[%emt 0:00:00]} (23. Re3 $1 $14 Rd8 24. Qxa7 Rxd1+ 25. Kxd1) 23... Kf7 $1 $15 {[%emt 0:00:08] aiming for ...Qc8.} 24. Re4 {[%emt 0:00:00]} ({Don't play} 24. Qxb7 Qc8 25. Rd7 Qxb7 26. Rxb7 Rhb8) 24... g5 {[%emt 0:02:54] Inhibits Rf4+. Strongly threatening ...Rd8.} 25. Rd3 {[%emt 0:00:00] [#] White wants to mate with Rf3+.} Rh7 {[%emt 0:01:09][%cal Bh8h7,Bh7f7,Bf7f3][%mdl 32] ...Rd8 is the strong threat.} 26. hxg5 $2 {[%emt 0:00:00][%mdl 8192]} ({Avoid the trap} 26. Rd6 $2 Kf8 27. Qxb7 Re8 $19) (26. Qxb7 $17 Qc8 27. Qxc8 Rxc8 28. hxg5) 26... Rd8 $19 {[%emt 0:01:03]} 27. Rf3+ {[%emt 0:01:27]} Kg6 {[%emt 0:00:08]} 28. Qa4 {[%emt 0:00:02]} Bxg5+ {[%emt 0:01:07]} 29. Kb1 {[%emt 0:00:05]} Rf7 {[%emt 0:03:12]} 30. Qb3 {[%emt 0:04:30]} Rxf3 {[%emt 0:00:16]} 31. Qxf3 {[%emt 0:00:02]} Qf7 {[%emt 0:00:11]} 32. Qe2 {[%emt 0:00:06]} (32. Qxf7+ Kxf7 33. f4) 32... Rd2 {[%emt 0:00:09] What a bad dream for White.  Weighted Error Value: White=0.75/Black=0.14 (very precise)} 0-1

[Event "Vienna Championship 2022"]
[Site "Vienna"]
[Date "2022.09.24"]
[Round "8.5"]
[White "Atzl, Florian"]
[Black "Stanec, Nikolaus"]
[Result "0-1"]
[ECO "B06"]
[WhiteElo "2155"]
[BlackElo "2458"]
[Annotator "TA"]
[PlyCount "62"]
[EventDate "2022.09.17"]
[EventType "tourn"]
[EventCountry "AUT"]
[SourceTitle "playchess.com"]
[Source "ChessBase"]
[SourceQuality "1"]
[TimeControl "5400+30"]

{[%evp 9,62,47,63,25,31,24,81,91,77,85,79,87,87,86,87,72,70,19,23,-39,-46,-31,-9,-152,-154,-143,-149,-209,-190,-516,-514,-501,-218,-199,-189,-556,-334,-716,-702,-706,-710,-683,-694,-958,-950,-893,-886,-1001,-959,-29986,-29987,-5110,-1142,-1705,-1476]} 1. e4 {[%emt 0:00:33]} g6 {[%emt 0:00:07]} 2. d4 {[%emt 0:00:20]} Bg7 {[%emt 0:00:05]} 3. Be2 {[%emt 0:00:58]} c5 {[%emt 0:02:37]} 4. dxc5 {[%emt 0:00:33]} Na6 {[%emt 0:00:42]} 5. Bxa6 {[%emt 0:06:15]} Qa5+ {[%emt 0:01:48]} 6. c3 {[%emt 0:00:23] B06: Modern Defence.} (6. Nc3 $5 bxa6 7. Nge2 $14) 6... Qxa6 {[%emt 0:00:28]} 7. Be3 {[%emt 0:03:50] [#]} Qc6 $146 {[%emt 0:02:55]} (7... b6 $1 $11 {keeps the balance.}) ({Predecessor:} 7... b6 8. cxb6 axb6 9. Ne2 Bb7 10. f3 Nf6 11. O-O O-O 12. Nd4 e5 13. Nc2 d5 {1-0 (35) Puranen,J (2310)-Ristoja,T (2260) Finland 1994}) 8. f3 $16 {[%emt 0:02:16] White is better.} b6 {[%emt 0:01:14]} 9. cxb6 {[%emt 0:03:09]} axb6 {[%emt 0:00:08]} 10. Ne2 {[%emt 0:01:42]} Ba6 {[%emt 0:01:36]} 11. Nd4 {[%emt 0:04:33]} Qb7 {[%emt 0:01:26]} 12. Na3 {[%emt 0:03:01]} Nf6 {[%emt 0:01:21]} 13. Nac2 {[%emt 0:06:07]} (13. c4 $14) 13... e5 $11 {[%emt 0:01:56][%cal Be7e5,Be5e4,Be4e3][%mdl 32]} 14. Ne2 {[%emt 0:06:12]} (14. Nb3 $1 $11) 14... d5 $15 {[%emt 0:03:41]} 15. Bg5 {[%emt 0:04:02]} O-O-O {[%emt 0:04:50]} 16. exd5 {[%emt 0:05:51] Black continues to play with concentration.} (16. O-O $11) 16... Rxd5 $17 {[%emt 0:00:49]} 17. Qc1 {[%emt 0:00:17]} e4 $1 $36 {[%emt 0:07:43][%mdl 2048] Black is on the roll. Black is more active.} 18. f4 {[%emt 0:01:03] [#]} (18. c4 $17 {was called for.} Rc5 19. Ng3 exf3 20. O-O) 18... e3 $1 $19 {[%emt 0:05:21]} 19. c4 $2 {[%emt 0:06:19]} (19. Nxe3 Re8 20. O-O) 19... Rd2 {[%emt 0:13:18]} ({Not} 19... Rxg5 20. fxg5 Qxg2 21. Rf1 Qxh2 22. Qxe3 $17 (22. gxf6 $2 Qh4+ 23. Kd1 Rd8+ 24. Ncd4 Rxd4+ 25. Nxd4 Qxd4+ 26. Kc2 Bxc4 $19)) 20. Nxe3 {[%emt 0:04:45] [#]} Rxe2+ {[%emt 0:01:43][%mdl 512]} 21. Kxe2 {[%emt 0:00:38] Threatens to win with Re1.} Re8 {[%emt 0:00:08]} 22. Kf1 $2 {[%emt 0:12:39]} ({Wrong is} 22. Kf2 $2 Ne4+ 23. Ke2 Nxg5 $19) (22. Kd1 {nothing else works.} Qe4 23. Bxf6 Bxf6 24. Re1 Rd8+ 25. Nd5 Qd4+ 26. Qd2 Qxd2+ 27. Kxd2 Bxc4 28. Rac1 Rxd5+ 29. Ke3 Bd4+ 30. Kf3) 22... Qe4 {[%emt 0:02:06] ( -> ...Ng4)} 23. Qd2 $2 {[%emt 0:05:50]} (23. Kf2 Qxe3+ 24. Qxe3 Ng4+ 25. Kg3 Nxe3 26. Rae1) 23... Ng4 {[%emt 0:13:07][%mdl 64] Deflection} 24. Nxg4 {[%emt 0:01:41]} Qxc4+ {[%emt 0:00:14]} 25. Kf2 {[%emt 0:03:55]} Re2+ {[%emt 0:00:10]} 26. Qxe2 {[%emt 0:00:07]} Qxe2+ {[%emt 0:00:07]} 27. Kg3 {[%emt 0:00:28]} h5 {[%emt 0:05:53]} 28. Rac1+ {[%emt 0:00:04]} Kb8 {[%emt 0:00:44]} 29. Nh6 {[%emt 0:00:50]} Bb7 {[%emt 0:03:15]} 30. Rhg1 {[%emt 0:02:13]} Qe3+ {[%emt 0:00:48]} (30... f6 $142 31. Rce1 Qd3+ 32. Kh4 fxg5+ 33. fxg5 Qd2) 31. Kh4 {[%emt 0:00:25]} f6 {[%emt 0:00:19] Weighted Error Value: White=1.16/Black=0.39} 0-1

[Event "Vienna Championship 2022"]
[Site "Vienna"]
[Date "2022.09.25"]
[Round "9.1"]
[White "Stanec, Nikolaus"]
[Black "Schwabeneder, Florian"]
[Result "1/2-1/2"]
[WhiteElo "2458"]
[BlackElo "2417"]
[Annotator "TA"]
[PlyCount "32"]
[EventDate "2022.09.17"]
[EventType "tourn"]
[EventCountry "AUT"]
[SourceTitle "playchess.com"]
[Source "ChessBase"]
[SourceQuality "1"]
[TimeControl "5400+30"]

{[%evp 12,19,10,12,8,12,18,21,24,8]} 1. d4 {[%emt 0:00:01]} d5 {[%emt 0:00:12]} 2. c4 {[%emt 0:00:06]} e6 {[%emt 0:00:15]} 3. Nc3 {[%emt 0:00:06]} Nf6 {[%emt 0:00:23]} 4. Nf3 {[%emt 0:00:24]} Bb4 {[%emt 0:00:36]} 5. e3 {[%emt 0:00:31]} O-O {[%emt 0:00:26]} 6. Bd3 {[%emt 0:00:26]} b6 {[%emt 0:00:48]} 7. O-O {[%emt 0:00:15]} Ba6 {[%emt 0:00:44] E52: Nimzo-Indian: Rubinstein: 4...0-0 5 Nf3 d5 6 Bd3 b6.} 8. cxd5 {[%emt 0:00:24]} Bxd3 {[%emt 0:00:13]} 9. Qxd3 {[%emt 0:00:06] [#] Black must now prevent dxe6.} exd5 {[%emt 0:00:12]} 10. Bd2 {[%emt 0:00:30] [#] A balanced but interesting game.  Weighted Error Value: White=0.00 (flawless) /Black=0.02 (flawless)} {Predecessor:} Re8 $146 11. Rfc1 c6 12. Ne2 Bd6 13. b4 a6 14. a4 Qe7 15. Rab1 Ra7 16. Ng3 g6 {0-1 (70) Vidit,S (2727)-Tabatabaei,M (2623) Chess.com INT 2022} 1/2-1/2

[Event "Vienna Championship 2022"]
[Site "Vienna"]
[Date "2022.09.25"]
[Round "9.2"]
[White "Peyrer, Konstantin"]
[Black "Atzl, Florian"]
[Result "0-1"]
[ECO "B40"]
[WhiteElo "2402"]
[BlackElo "2155"]
[Annotator "TA"]
[PlyCount "80"]
[EventDate "2022.09.17"]
[EventType "tourn"]
[EventCountry "AUT"]
[SourceTitle "playchess.com"]
[Source "ChessBase"]
[SourceQuality "1"]
[TimeControl "5400+30"]

{[%evp 9,80,17,35,0,0,10,4,15,22,-12,104,94,79,81,78,59,87,25,117,117,118,105,122,117,131,129,248,255,436,472,513,491,987,958,945,909,727,468,710,708,593,55,7,37,1457,1445,1281,1114,29989,1027,912,369,311,0,0,0,0,-334,-264,-459,-390,-521,-368,-528,-514,-623,-425,-1872,-1387,-1260,-604,-5822,-1500]} 1. e4 {[%emt 0:00:06]} c5 {[%emt 0:00:31]} 2. Nf3 {[%emt 0:00:06]} e6 {[%emt 0:00:05]} 3. Nc3 {[%emt 0:00:04]} a6 {[%emt 0:00:06]} 4. Be2 {[%emt 0:00:06]} Qc7 {[%emt 0:01:56]} 5. d4 {[%emt 0:02:18]} cxd4 {[%emt 0:00:05]} 6. Qxd4 {[%emt 0:00:05] B40: Sicilian: 2...e6, Unusual lines.} Nc6 {[%emt 0:02:11]} 7. Qe3 {[%emt 0:00:16]} Nf6 {[%emt 0:03:50]} 8. O-O {[%emt 0:01:39] The position is equal.} Be7 {[%emt 0:02:04] [#]} 9. Qg5 $146 {[%emt 0:05:57] e5 is the strong threat.} ({Predecessor:} 9. Qf4 Bd6 10. Qh4 O-O 11. Bd3 Be7 12. Rd1 d6 13. Qg3 Nd7 14. a4 Nde5 15. Nxe5 Nxe5 {0-1 (42) Rodriguez Perez,R (2183)-Baranyuk,A (2262) ICCF email 2013}) 9... Nxe4 {[%emt 0:12:47]} 10. Qxg7 $16 {[%emt 0:00:26]} Bf6 {[%emt 0:00:10]} 11. Qh6 $36 {[%emt 0:00:07][%mdl 2048] White is really pushing.} Nxc3 {[%emt 0:01:43]} 12. bxc3 {[%emt 0:00:06]} Bxc3 {[%emt 0:02:18]} 13. Bf4 {[%emt 0:01:34]} ({White should try} 13. Rb1 $16) 13... Qa5 {[%emt 0:08:44]} (13... Qd8 $1 $11) 14. Rad1 {[%emt 0:04:15][%mdl 1024] White has strong compensation.} Qf5 {[%emt 0:03:11]} (14... Qxa2 $2 15. Ng5 Qb2 16. Qh5 $18) 15. Bd6 {[%emt 0:01:36]} Rg8 {[%emt 0:03:40]} 16. Qe3 {[%emt 0:03:49] Inhibits Qe4.} Bf6 {[%emt 0:01:50]} 17. g3 {[%emt 0:03:39]} Qxc2 {[%emt 0:07:21]} (17... Be7 $16) 18. Bd3 $1 $18 {[%emt 0:02:57]} Qxa2 {[%emt 0:00:09]} (18... Qb2 19. Bxh7 Rh8) 19. Bxh7 {[%emt 0:02:05]} Rh8 {[%emt 0:00:19]} 20. Qf4 {[%emt 0:03:21]} Qb2 {[%emt 0:04:58]} (20... Be7 $142 21. Ng5 e5) 21. Rd2 {[%emt 0:01:15]} Qc3 {[%emt 0:00:13]} 22. Rd3 {[%emt 0:00:22]} Qb2 {[%emt 0:08:00]} 23. Ba3 {[%emt 0:04:19]} Qb5 {[%emt 0:00:05]} (23... Be5 $142 24. Bxb2 Bxf4 25. Bxh8 Bh6) 24. Qxf6 {[%emt 0:00:40][%cal Rf6h8]} ({Less strong is} 24. Bg6 fxg6 25. Qxf6 Rg8 $14) 24... Rxh7 {[%emt 0:00:07]} 25. Ng5 $2 {[%emt 0:06:56]} Qxd3 $14 {[%emt 0:01:58]} 26. Nxh7 {[%emt 0:00:06]} Qxh7 {[%emt 0:00:10][%mdl 8192]} (26... d6 $14 27. Qh8+ Kd7 28. Nf6+ Ke7) 27. Bd6 $18 {[%emt 0:00:05]} b5 {[%emt 0:01:43]} 28. Rc1 {[%emt 0:00:06][%cal Oc1c6] Rxc6! would kill now.} Ra7 {[%emt 0:00:13]} 29. h4 {[%emt 0:00:41]} (29. Rc5 $142 Qb1+ 30. Rc1 Qh7 31. Rc5 b4 32. h4 b3 33. Rg5 b2 34. Qxb2) 29... b4 {[%emt 0:01:25]} 30. Rc4 {[%emt 0:04:53]} (30. Rc5 $142 {Threatening mate with Rg5.} b3 31. Rg5) 30... b3 {[%emt 0:05:36] [#]} 31. Rg4 $2 {[%emt 0:00:35]} (31. Kh2 $1 $18 {White threatens Rg4 and mate.} b2 32. Qxb2) 31... b2 $1 $11 {[%emt 0:00:26]} 32. Qxb2 {[%emt 0:00:35] Intending Qf6 and mate.} Ne7 $1 {[%emt 0:02:02] Hoping for ...Rb7.} 33. Qf6 $2 {[%emt 0:00:28][%mdl 8192] [#]} (33. Rg5 $11 {and White stays safe.} Bb7 34. f3) 33... Nf5 $1 $19 {[%emt 0:01:50]} 34. Ba3 {[%emt 0:02:22]} (34. Bf4 {was called for.} d6 35. Bg5) 34... Rb7 {[%emt 0:02:37] ( -> ...Rb1+)} 35. Bb2 {[%emt 0:09:57]} d5 {[%emt 0:04:29][%cal Od5d4]} 36. Qc3 {[%emt 0:04:05]} (36. Ba3 {was worth a try.}) 36... Ne7 {[%emt 0:05:17][%cal Oe6e5] aiming for ...e5! Black is clearly winning.} 37. Ba3 {[%emt 0:01:28]} Bd7 {[%emt 0:02:12]} 38. Rg7 {[%emt 0:02:14]} (38. Rb4 $142 Bb5 39. h5) 38... Qe4 {[%emt 0:02:23]} 39. f3 {[%emt 0:01:20]} Rb1+ {[%emt 0:01:09]} 40. Bc1 {[%emt 0:00:10]} Qc4 {[%emt 0:01:46] Weighted Error Value: White=0.97/Black=0.47} 0-1